Cogmind - Beta 16 @@@ ROGUE MODE // 2025.11.15 @ 09:09:28 // Winter2019/RPGLIKE Player: Jaegerpls Result: Destroyed by 68-N1L(R) with Subdweller Machine Gun Performance ------------- Evolutions (0) 0 Regions Visited (2) 400 Robots Destroyed (33) 165 Value Destroyed (730) 730 Prototype IDs (0) 0 Alien Tech Used (0) 0 Bonus (0) 0 TOTAL SCORE: 1295 Bonus ------- None Cogmind --------- Core Integrity 0/600 Matter 262/300 Energy 124/125 System Corruption 1% Temperature Cool (0) Movement Treading (160) Location -10/Subcaves Parts ------- > --- POWER (1) -------- Light Ion Engine > --- PROPULSION (2) --- Light Treads Light Treads > --- UTILITY (3) ------ Improved Terrain Scanner > --- WEAPON (3) ------- Subdweller Beam Cannon Subdweller Beam Cannon Assault Rifle > --- INVENTORY (1) ---- Multitool Peak State ------------ > --- POWER ------------ Subdweller Power Source > --- PROPULSION ------- Light Treads Light Treads > --- UTILITY ---------- Improved Terrain Scanner Scrap Shield > --- WEAPON ----------- Subdweller Laser Subdweller Beam Cannon Assault Rifle > --- INVENTORY -------- Light Ion Engine [Rating: 16] Favorites ----------- Power Light Ion Engine Engine Light Ion Engine Propulsion Light Treads Treads Light Treads Wheel Wheel Utility Improved Terrain Scanner Device Improved Terrain Scanner Storage High-capacity Matter Pod Processor Visual Processing Unit Protection Scrap Shield Weapon Assault Rifle Energy Gun Subdweller Laser Energy Cannon Subdweller Beam Cannon Ballistic Gun Assault Rifle Special Weapon Multitool Build | -11 -10 -10 ------- Run | Yrd Mat Sub Slots Evolved 5 | 4 . 1 Power . | . . . Propulsion 1 | 1 . . Utility 2 | 2 . . Weapon 2 | 1 . 1 Parts Attached 22 | 7 8 7 Power 3 | 1 . 2 Engine 3 | 1 . 2 Core . | . . . Reactor . | . . . Propulsion 5 | 3 2 . Treads 2 | . 2 . Leg . | . . . Wheel 3 | 3 . . Hover . | . . . Flight . | . . . Utility 5 | 1 3 1 Device 2 | 1 1 . Storage 1 | . 1 . Processor 1 | . 1 . Hackware . | . . . Protection 1 | . . 1 Artifact . | . . . Weapon 9 | 2 3 4 Energy Gun 2 | 1 . 1 Energy Cannon 3 | . 1 2 Ballistic Gun 3 | 1 2 . Ballistic Cannon . | . . . Launcher . | . . . Special Weapon 1 | . . 1 Impact Weapon . | . . . Slashing Weapon . | . . . Piercing Weapon . | . . . Special Melee Weapon . | . . . Unidentified Prototypes . | . . . Parts Lost 1 | . . 1 Power . | . . . Propulsion . | . . . Utility 1 | . . 1 Weapon . | . . . Highest Loss Streak 1 | . . 1 To Critical Strikes . | . . . Average Backups . | . . . Power . | . . . Propulsion . | . . . Utility . | . . . Weapon . | . . . Tool/Special . | . . . Unused Backups . | . . . Power . | . . . Propulsion . | . . . Utility . | . . . Weapon . | . . . Tool/Special . | . . . Average Slot Usage (%) 89 | . 91 86 Engine 11 | . 12 10 Treads 17 | . 14 22 Wheel 3 | . 6 . Device 18 | . 21 13 Storage 5 | . 8 2 Processor 1 | . 2 . Protection 3 | . . 8 Energy Gun 3 | . 3 4 Energy Cannon 5 | . 3 8 Ballistic Gun 16 | . 18 14 Peak Build Rating 16 | 8 11 16 Average Rating 11 | 4 9 13 On Entrance 6 | . 8 10 Avg Prop Armor Cover (%) . | . . . Naked Turns . | . . . Heaviest Build 40 | 6 13 40 Greatest Support 40 | 26 40 40 Greatest Overweight (x) . | . . . Average Overweight (x) . | . . . Largest Inventory Capacity 1 | . . 1 Average Capacity . | . . . Most Carried 1 | . . 1 Average Carried . | . . . Final Capacity 1 | . . 1 Final Carried 1 | . . 1 Class Distribution -------------------- 56% | Skirmisher 24% | Subdweller-Skirmisher 12% | Mutant 6% | Scavenger-Skirmisher Dominant Class ---------------- Skirmisher | -10/Materials Subdweller-Skirmisher | -10/Subcaves Resources | -11 -10 -10 ----------- Run | Yrd Mat Sub Matter Collected 826 | 266 180 380 Remotely 291 | . 150 141 Salvage Created 594 | 135 225 234 Parts 69 | 10 30 29 Haulers Intercepted 2 | . 2 . Recyclers Shooed 1 | 1 . . Parts Field Recycled . | . . . Retrieved Matter . | . . . Parts Self-Destructed 9 | . . 9 Prevented . | . . . Parts Restored . | . . . Kills | -11 -10 -10 ------- Run | Yrd Mat Sub Combat Hostiles Destroyed 22 | . 11 11 Guns 13 | . 6 7 Cannons 8 | . 4 4 Classes Destroyed 10 | 2 5 3 Tunneler 3 | 3 . . Hauler 2 | . 2 . Recycler 1 | 1 . . Operator 1 | . 1 . Turret 1 | . . 1 Watcher 3 | . 3 . Swarmer 9 | . 5 4 Grunt 6 | . 6 . Sentry 1 | . . 1 Subdweller 6 | . . 6 Best Kill Streak 3 | 2 3 2 Combat Bots Only 3 | . 3 2 Max Kills in Single Turn 1 | 1 1 1 Gunslinging . | . . . Exploded . | . . . Melee . | . . . Uniques/NPCs Destroyed . | . . . Combat | -11 -10 -10 -------- Run | Yrd Mat Sub Hostile Shots Fired 183 | . 47 136 Missed 56 | . 16 40 Hits 127 | . 31 96 Projectile 127 | . 31 96 Critical Strikes 4 | . 2 2 Damage Taken 1968 | . 386 1582 Core 1329 | . 309 1020 Absorbed by Shields . | . . . Redirected to Core 1133 | . 256 877 Core Remaining (%) 100 | 100 . . Volleys Fired 120 | 6 52 62 Largest 3 | 2 2 3 Hottest 180 | 60 100 180 Shots Fired 213 | 12 104 97 Gun 163 | 12 82 69 Cannon 46 | . 22 24 Launcher . | . . . Special 4 | . . 4 Kinetic 128 | 6 60 62 Thermal 85 | 6 44 35 Explosive . | . . . Electromagnetic . | . . . Robot Hit Streak 24 | 5 6 24 Robot Miss Streak 5 | 2 5 4 Penetration Max . | . . . Secondary Targets 1 | . 1 . Max Gunslinging Chain 1 | . 1 . Shots Hit Robots 133 | 6 56 71 Core Hits 48 | 5 24 19 Critical Kills 2 | . 1 1 Critical Parts Destroyed . | . . . Critical Strikes 2 | . 1 1 Meltdown 1 | . 1 . Destroy 1 | . . 1 Melee Attacks . | . . . Impact . | . . . Slashing . | . . . Piercing . | . . . Sneak Attacks . | . . . Combat Hostiles . | . . . Follow-up Attacks . | . . . Damage Inflicted 2030 | 65 794 1171 Guns 1220 | 65 514 641 Cannons 782 | . 280 502 Explosions . | . . . Melee . | . . . Ramming 9 | . . 9 Kinetic 1036 | 10 426 600 Thermal 985 | 55 368 562 Explosive . | . . . Electromagnetic . | . . . Impact . | . . . Slashing . | . . . Piercing . | . . . Highest Corruption 1 | . 1 1 Average Corruption 1 | . 1 1 Corruption Purged . | . . . Corruption Blocked . | . . . Effects 15 | . 6 9 Message Errors 6 | . 1 5 Matter Fused 5 | . 4 1 Heat Flow Errors 2 | . . 2 Data Loss (major) 1 | . . 1 Alerts 1 | . 1 . Overload Shots . | . . . Overflow Damage 9 | . . 9 Projectiles 9 | . . 9 Explosions . | . . . Melee . | . . . Knockbacks . | . . . Impact . | . . . Kinetic . | . . . Secondary . | . . . Self-Inflicted Damage 9 | . . 9 Shots . | . . . Rammed . | . . . Targets Rammed . | . . . Kicked . | . . . Crushed . | . . . Highest Temperature 192 | 8 123 192 Average Temperature 36 | 6 40 37 Received Heat Transfer 510 | . 159 351 Siege Activations . | . . . Martial Activations . | . . . Shielding Activations . | . . . Robots Disrupted . | . . . Combat Hostiles . | . . . Robots Corrupted . | . . . Combat Hostiles . | . . . Parts Fried . | . . . Impact Corruptions . | . . . Robots Melted 1 | . 1 . Combat Hostiles 1 | . 1 . Parts Melted 5 | . 3 2 Heat Transferred 1683 | 125 792 766 Parts Sabotaged . | . . . Parts Stolen . | . . . Parts Stripped . | . . . Power Chain Reactions . | . . . Alert | -11 -10 -10 ------- Run | Yrd Mat Sub Maximum Alert Level . | . . . Low Security (%) 100 | 100 100 . Level 1 . | . . . Level 2 . | . . . Level 3 . | . . . Level 4 . | . . . Level 5 . | . . . High Security . | . . . Max Security . | . . . Peak Influence 110 | 10 110 . Initial . | . . . Average 29 | 1 30 . Influence Increases 629 | 20 354 255 Destroy 0b10 Robot/C 340 | . 220 120 Destroy 0b10 Robot/NC 50 | 20 30 . Destroy Leader 50 | . 50 . Successful Hack 23 | . 23 . Destroy Structure 1 | . 1 . Partial Spotted 15 | . 15 . Lose Combat Pursuer 150 | . 15 135 Influence Decreases 506 | 20 354 132 Time Decay 496 | 20 354 122 Lost Part 10 | . . 10 Squads Dispatched 1 | . 1 . Investigation . | . . . Extermination . | . . . Reinforcement 1 | . 1 . Assault . | . . . Garrison . | . . . Intercept . | . . . Searches Triggered . | . . . Construction Impeded . | . . . Haulers Reinforced . | . . . Active Scanning Responses . | . . . Cargo Convoy Interrupts . | . . . Stealth | -11 -10 -10 --------- Run | Yrd Mat Sub Distress Signals . | . . . Communications Jammed . | . . . Distress Signals . | . . . Times Spotted 37 | . 19 18 Peak Tracking Total 5 | . 5 3 Tactical Retreats 6 | . 1 5 Traps | -11 -10 -10 ------- Run | Yrd Mat Sub Traps Triggered 2 | . 2 . Indirectly . | . . . Trap Hack Attempts . | . . . Triggered . | . . . Disarmed . | . . . Reprogrammed . | . . . Reused . | . . . Traps Extracted . | . . . Installed . | . . . Triggered . | . . . Machines | -11 -10 -10 ---------- Run | Yrd Mat Sub Machines Disabled 1 | . . 1 Max in Single Turn 1 | . . 1 Machines Repaired . | . . . Machines Dismantled . | . . . Machines Sabotaged . | . . . Overloaded Fab Kills . | . . . Hacking | -11 -10 -10 --------- Run | Yrd Mat Sub Machines Accessed 7 | . 7 . Terminals 6 | . 6 . Fabricators . | . . . Repair Stations . | . . . Recycling Units 1 | . 1 . Scanalyzers . | . . . Garrison Access . | . . . Total Hacks 22 | . 22 . Successful 12 | . 12 . Failed 9 | . 9 . Catastrophic . | . . . Database Lockouts 1 | . 1 . Manual 21 | . 21 . Terminals 20 | . 20 . Fabricators . | . . . Repair Stations . | . . . Recycling Units 2 | . 2 . Scanalyzers . | . . . Garrison Access . | . . . Terminal Hacks 1 | . 1 . Robot Analysis 1 | . 1 . Fabricator Hacks . | . . . Repair Station Hacks . | . . . Recycling Unit Hacks 1 | . 1 . Report Inventory 1 | . 1 . Scanalyzer . | . . . Garrison Access Hacks . | . . . Unauthorized Hacks 10 | . 10 . Terminals 9 | . 9 . Track 1 | . 1 . Botnet 2 | . 2 . Disrupt 1 | . 1 . Skim 5 | . 5 . Fabricators . | . . . Repair Stations . | . . . Recycling Units 1 | . 1 . Reject 1 | . 1 . Scanalyzers . | . . . Garrison Access . | . . . Data Cores Recovered 1 | . 1 . Used . | . . . Hacking Detections 5 | . 5 . Full Trace Events . | . . . Feedback Events . | . . . Feedback Blocked . | . . . Robot Schematics Acquired . | . . . Robots Built . | . . . Authchips . | . . . Time . | . . . Total Robot Build Rating . | . . . Part Schematics Acquired . | . . . Parts Built . | . . . Authchips . | . . . Time . | . . . Total Part Build Rating . | . . . Part Studies Acquired . | . . . Parts Repaired . | . . . Time . | . . . Parts Recycled . | . . . Recycled Matter . | . . . Retrieved Matter . | . . . Retrieved Components . | . . . Parts Scanalyzed . | . . . Part Schematics Acquired . | . . . Parts Damaged . | . . . Bothacking | -11 -10 -10 ------------ Run | Yrd Mat Sub Used RIF Installer . | . . . Robots Hacked . | . . . Non-combat . | . . . Combat . | . . . Robot Hacks Applied . | . . . Relay Couplers Released . | . . . Fabnet Peak Effective % . | . . . Robots Rewired . | . . . Allies Hacked . | . . . Hacks Repelled . | . . . Allies | -11 -10 -10 -------- Run | Yrd Mat Sub Total Allies . | . . . Largest Group . | . . . Highest-Rated Group . | . . . Highest-Rated Ally . | . . . Total Orders . | . . . Ally Attacks . | . . . Total Damage . | . . . Kills . | . . . Allies Corrupted . | . . . Allies Melted . | . . . Intel | -11 -10 -10 ------- Run | Yrd Mat Sub Active Infowar (turns) 2415 | 6 1261 1148 Optics 224 | . 224 . Terrain 2415 | 6 1261 1148 Robot Analysis Total 1 | . 1 . Derelict Logs Recovered . | . . . Drone Launches . | . . . Drone Recoveries . | . . . Exploration | -11 -10 -10 ------------- Run | Yrd Mat Sub Turns Passed 2475 | 66 1261 1148 Spaces Moved 1200 | 40 703 457 Core 9 | 9 . . Treads 898 | . 441 457 Legs . | . . . Wheels 293 | 31 262 . Hover . | . . . Flight . | . . . Fastest Speed 50 | 50 80 160 Average Speed 139 | 80 130 160 Slowest Speed 160 | 90 160 160 Overloaded Moves . | . . . Propulsion Burnouts . | . . . Robots Hopped . | . . . Potential Cave-ins . | . . . Cave-ins Triggered . | . . . Exploration Rate (%) 43 | 3 93 33 Regions Visited 2 Branch Regions 1 Pre-discovered Areas 1 | . . 1 Known Exits Taken . | . . . Unknown Exits Taken 2 | 1 1 . Scrap Searched 2 | . . 2 Spaces Dug 1 | . . 1 Terrain Destroyed 2 | . . 2 Melee . | . . . Projectile 2 | . . 2 AOE . | . . . Terrain Rammed 1 | . . 1 Walls Destroyed . | . . . Machines Disabled . | . . . Actions | -11 -10 -10 --------- Run | Yrd Mat Sub Total 1789 | 60 944 785 Wait 388 | 7 155 226 Move 1198 | 39 702 457 Hop . | . . . Pick Up 1 | . . 1 Fast Attach 20 | 6 8 6 Attach . | . . . Detach 2 | . 1 1 Swap 2 | 1 . 1 Drop 13 | 1 5 7 Fire 120 | 6 52 62 Melee . | . . . Ram 1 | . . 1 Kick . | . . . Crush . | . . . Escape Stasis . | . . . Rewire . | . . . Trap . | . . . Miscellaneous 44 | . 21 23 Route ------- -11/Scrapyard -10/Materials (discovered 5 exits: [*Mat x3] / [*Min] / [*Sub]) -10/Subcaves (discovered 3 exits: Mat x2 / [*Rec]) History --------- Turn | Location | Event 7 | -11/Scrapyard | Upgraded with Propulsion slot (x1) 7 | -11/Scrapyard | Upgraded with Utility slot (x2) 7 | -11/Scrapyard | Upgraded with Weapon slot (x1) 17 | -11/Scrapyard | Discovered new exit (range 16) 67 | -11/Scrapyard | Entered Materials 304 | -10/Materials | Discovered new exit (range 7) 311 | -10/Materials | Build established: Skirmisher 561 | -10/Materials | Discovered new exit (range 8) 766 | -10/Materials | Discovered new exit (range 15) 898 | -10/Materials | Discovered new exit (range 14) 939 | -10/Materials | Discovered new exit (range 9) 1030 | -10/Materials | Central database locked down 1112 | -10/Materials | Learned location of 1 exit from Recycling 1138 | -10/Materials | Learned 4 Recycling zone layouts 1153 | -10/Materials | Learned 2 Mines zone layouts 1158 | -10/Materials | Loaded intel: 20 trap records 1159 | -10/Materials | Learned location of 2 exits from Materials 1161 | -10/Materials | Learned Storage stockpile data 1328 | -10/Materials | Entered Subcaves 1329 | -10/Subcaves | Approached by a straggling Scientist 1329 | -10/Subcaves | Identified exit to Materials 1330 | -10/Subcaves | Reached level 2 1330 | -10/Subcaves | Upgraded with Weapon slot (x1) 1360 | -10/Subcaves | Learned location of Zion (-6) 1360 | -10/Subcaves | Met a Zionite searching for "candidates" 1655 | -10/Subcaves | Core integrity fell below 50% 1697 | -10/Subcaves | Build established: Mutant 1805 | -10/Subcaves | Discovered new exit (range 11) 2013 | -10/Subcaves | Build established: Subdweller-Skirmisher 2307 | -10/Subcaves | Disturbed a concealed Subdweller 2448 | -10/Subcaves | A Subdweller sparked back to life 2448 | -10/Subcaves | A Subdweller sparked back to life 2448 | -10/Subcaves | A Subdweller sparked back to life 2467 | -10/Subcaves | Core integrity fell below 20% 2476 | -10/Subcaves | Destroyed by 68-N1L(R) with Subdweller Machine Gun Last Messages --------------- 02347_ Found Sub. Monowheel. 02347_ Found 60 Matter. 4U-GHR(c): "I think it's somewhere north of here" 02348_ Acquired 60 matter. 02349_ Searching scrap... 02349_ Found Mak. Thermal Plating. 02349_ Found Shrapnel Trap. 02349_ Found 40 Matter. 02350_ Acquired 40 matter. 02354_ Acquired Sub. Beam Cannon. 4U-GHR(c): "I think it's somewhere north of here" 02448_ MV-ESY(R) creaks and sparks as it begins to move. 02448_ 68-N1L(R) creaks and sparks as it begins to move. 02448_ QR-S71(R) creaks and sparks as it begins to move. 4U-GHR(c): "I think it's somewhere north of here" 02454_ Sub. Beam Cannon shoots sparks and powers down. 02464_ Scrap Shield destroyed. 02467_ Sub. Optics melted. 02467_ MV-ESY(R) destroyed. 02476_ Sub. Beam Cannon shoots sparks and powers down. Map ----- +----------------------------------------------------+ | # ################ ????????????????????????? | | ## ##############?## "?????????????????????????? | | ## ##############?##""?????????????????????????? | | ############?#?###??????????????????????????? | | ####################??????????????????????????? | | #################?????????????????????????????? | | #################?????????????????????????????? | | ###############??????????????????????????????? | | #################??????????????????????????????? | | ###############?##???????????????????????????????? | | ###############?##????#????#?????????????????????? | | ###############??#?#????#????????????????????????? | | ##################???#######?##??????????????????? | | ##############################?#? ???????????????? | | ######################?#?####?#? ?????????????? | | #######################?#?#?###?? ? ????????????? | | ##########################?#??### ? ????????????? | | #########?######################?# ????????????? | | ############################?####? ??#??????????? | | #############################?#?? ? ?##??????????? | | ##"& ="######################### ? ?#? ?????????? | | ## !## ################ ###### ?????????? | | #####=!################< ###### ? ????????? | | ####" ################# < <####? ## ????????? | | # ## ## ############ << <###### ?#?#? ????????? | | "*" ##### ### @R ####### #?#??????????? | | ! ### c !R ##? ####?? ????????? | | # ## ## # ### ### #####? ???????? | | # #### # ######## #####????????? | | # ##### ### ######### ##??????????? | | ## ### ### ########### # # # ##????????? | | ### ## # ## # ## ## #?????????? | | ### #?????????? | | ##### ?? #?????????? | | ###### # # ## ## ## ? ?#?????????? | | ####### ###############? ? ??????????? | | ###################?##### ? ??????????? | | ######################## ???????????? | | ####################### ## ????????????? | | #################?##### ##### ?????????????? | | ####################### ##### ? ??????????????? | | ###?##########?######## ### ? ????????????????? | | #?##################### ? ?????????????????? | | ########?############# ? ??????????????????? | | ??##????###?######?##### ? ???????????????????? | | ##??#?????##########?####??? ????????????????????? | | #???????#????####?###???## ??????????????????????? | | ??????????????###########????????????????????????? | | ???????????????????#?????????????????????????????? | | ?????????????????????????????????????????????????? | +----------------------------------------------------+ Best States ------------- Heat Dissipation 43 Energy Generation 15 Energy Capacity 200 Matter Stores 300 Matter Capacity 500 Sight Range 18 Robot Scan Range 10 Terrain Scan Range 16 Terrain Scan Density 410 Armor Coverage 800 Evasion (%) 50 Recoil Reduction 2 Item Schematics ----------------- None Robot Schematics ------------------ None Fabricated ------------ Nothing Repaired ---------- Nothing Studied --------- None Alien Tech Used ----------------- None Achievements -------------- Survival Of The Most Covered Challenges ------------ None RPGLIKE | -11 -10 -10 --------- Run | Yrd Mat Sub Levels Raised 1 | . . 1 XP Earned 5990 | 3000 1390 1600 XP Spent 4500 | 2990 . 1510 Upgrades 18 | 12 . 6 Propulsion Slot 1 | 1 . . Utility Slot 2 | 2 . . Weapon Slot 2 | 1 . 1 Heat Dissipation 3 | 1 . 2 Inventory Capacity 1 | . . 1 Sensor Range 5 | 5 . . Terrain Scan Density 4 | 2 . 2 Protomatter Created 469 | . 285 184 Integrity Restored 808 | . 394 414 Core 723 | . 309 414 Parts 85 | . 85 . Protomatter Decayed 199 | . 148 51 Game ------ Seed LongswordGravjetCapacitor Manual? 0 Play Time 00:17:49 Cumulative 53.7 hours Start 2025.11.15 @ 08:52:04 End 2025.11.15 @ 09:09:28 Sessions 1 Manual Loads 0 Difficulty Rogue Special Mode Winter2019/RPGLIKE Game No. 47 Rogue 47 Adventurer 0 Explorer 0 Win Type - Total 0 Types 0/0/0/0/0/0/0/0/0/0 Lore% 49 Gallery% 32 Achievement% 30 Wizard Run 0 Options --------- Layout 0 ASCII 0 Keyboard 0 Movement Mouse Keybinds 0 Fullscreen 2 Font 24/Smallcaps Map View 76x50 Zoom Use 0% Tactical HUD 1 Map Filters NONE Filters NONE Steam 1 RUN: 7d70a7f0-9906-46c0-ac1a-99868c7ec28f